bitfinex/quotes_BTCUSD_20250624
["timestamp","ask_amount","ask_price","bid_price","bid_amount"]
[1750747320618,0.00657936,105860.0,105850.0,1.38270051]
[1750747320824,0.00657936,105860.0,105850.0,1.57762051]
[1750747326653,0.0041,105870.0,105860.0,0.26330785]
[1750747326870,0.0041,105870.0,105860.0,1.66150354]
[1750747327083,0.0041,105870.0,105860.0,1.75583157]
[1750747327550,0.0041,105870.0,105860.0,1.67763054]
[1750747327986,0.00456138,105870.0,105860.0,1.67763054]
[1750747328197,0.00556138,105870.0,105860.0,1.68663054]
[1750747328638,0.00556138,105870.0,105860.0,1.69163054]
[1750747330057,0.00556138,105870.0,105860.0,1.74163054]
[1750747330283,0.00556138,105870.0,105860.0,1.83595857]
[1750747330500,0.00556138,105870.0,105860.0,1.81701857]
[1750747330716,0.00556138,105870.0,105860.0,1.76701857]
[1750747331413,0.00556138,105870.0,105860.0,1.67269054]
[1750747331645,0.00556138,105870.0,105860.0,1.71289054]
[1750747331868,0.00556138,105870.0,105860.0,1.78792285]
[1750747332084,0.00556138,105870.0,105860.0,1.51801054]
[1750747332294,0.00556138,105870.0,105860.0,1.71289054]
[1750747332502,0.00556138,105870.0,105860.0,2.08411133]
[1750747332723,0.00556138,105870.0,105860.0,2.00909054]
[1750747332943,0.00556138,105870.0,105860.0,2.08411127]
[1750747333148,0.00556138,105870.0,105860.0,2.00909054]
[1750747333647,0.00556138,105870.0,105860.0,2.08410286]
[1750747334151,0.00556138,105870.0,105860.0,1.88922286]
[1750747334407,0.00556138,105870.0,105860.0,2.08402286]
[1750747337241,0.00556138,105870.0,105860.0,1.62619825]
[1750747337453,0.02096138,105870.0,105860.0,1.80495825]
[1750747338092,0.00556138,105870.0,105860.0,1.80495825]
[1750747338500,0.00556138,105870.0,105860.0,1.50875825]
[1750747340405,0.00556138,105870.0,105860.0,1.26306449]
[1750747340620,0.00556138,105870.0,105860.0,1.28200449]
[1750747342026,0.00556138,105870.0,105860.0,1.29790449]
[1750747343282,0.00556138,105870.0,105860.0,1.57839275]
[1750747343495,0.00556138,105870.0,105860.0,1.29790449]
[1750747352061,0.00556138,105870.0,105860.0,1.57839275]
[1750747352732,0.00556138,105870.0,105860.0,1.50338043]
[1750747352941,0.00556138,105870.0,105860.0,1.59770846]
[1750747354417,1.00645259,105920.0,105910.0,0.21716443]
[1750747354604,1.00645259,105920.0,105910.0,0.9634954]
[1750747354822,1.00649874,105920.0,105910.0,1.05745307]
[1750747355012,1.00649874,105920.0,105910.0,1.26807307]
[1750747355231,1.00649874,105920.0,105910.0,1.57693933]
[1750747355437,1.00649874,105920.0,105910.0,0.97200514]
[1750747355637,1.00649874,105920.0,105910.0,1.55192166]
[1750747355826,1.00649874,105920.0,105910.0,1.64624969]
[1750747356253,1.00649874,105920.0,105910.0,2.00148332]
[1750747356254,0.40962934,105920.0,105910.0,2.00148332]
[1750747356469,0.09661629,105920.0,105910.0,2.11428992]
[1750747356677,0.08132984,105920.0,105910.0,1.92812969]
[1750747356882,0.08132984,105920.0,105910.0,1.71714319]
[1750747357081,0.08132984,105920.0,105910.0,1.39093516]
[1750747357283,0.08132984,105920.0,105910.0,1.23508244]
[1750747357483,0.08132984,105920.0,105910.0,1.6687707]
[1750747357894,0.08132984,105920.0,105910.0,1.4725707]
[1750747358099,0.08132984,105920.0,105910.0,1.6687307]
[1750747358310,0.08132984,105920.0,105910.0,1.59409516]
[1750747358836,0.08132984,105920.0,105910.0,1.97918758]
[1750747359083,0.08124264,105920.0,105910.0,2.04182312]
[1750747359296,0.08124264,105920.0,105910.0,1.69169932]
[1750747359485,0.08124264,105920.0,105910.0,1.64169932]
[1750747359688,0.08124264,105920.0,105910.0,1.69469932]
[1750747359889,0.08124264,105920.0,105910.0,1.77469932]
[1750747360115,0.08124264,105920.0,105910.0,1.44421106]
[1750747360307,0.08124264,105920.0,105910.0,1.77469932]
[1750747360539,0.08124264,105920.0,105910.0,1.75575932]
[1750747360740,0.08124264,105920.0,105910.0,1.75579932]
[1750747360944,0.08124264,105920.0,105910.0,1.42531106]
[1750747361122,0.08124264,105920.0,105910.0,1.70579932]
[1750747361328,0.08124264,105920.0,105910.0,1.75579932]
[1750747361545,0.08124264,105920.0,105910.0,1.70579932]
[1750747361896,0.08124264,105920.0,105910.0,1.75579932]
[1750747362306,0.08124264,105920.0,105910.0,1.70579932]
[1750747362770,0.08124264,105920.0,105910.0,1.70575932]
[1750747362982,0.08124264,105920.0,105910.0,1.75575932]
[1750747363198,0.08124264,105920.0,105910.0,1.50959932]
[1750747363410,0.08124264,105920.0,105910.0,1.70591932]
[1750747363624,0.08124264,105920.0,105910.0,1.75591932]
[1750747364688,0.08124264,105920.0,105910.0,1.70591932]
[1750747364906,0.08124264,105920.0,105910.0,1.75591932]
[1750747365580,0.08124264,105920.0,105910.0,1.70591932]
[1750747365796,0.08124264,105920.0,105910.0,1.75591932]
[1750747367171,0.08124264,105920.0,105910.0,1.70591932]
[1750747367395,0.08124264,105920.0,105910.0,1.75591932]
[1750747367860,0.08124264,105920.0,105910.0,1.70591932]
[1750747368081,0.08124264,105920.0,105910.0,1.75591932]
[1750747368521,0.08124264,105920.0,105910.0,1.55959932]
[1750747368754,0.08124264,105920.0,105910.0,0.73826605]
[1750747368953,0.11184264,105920.0,105910.0,0.43889447]
[1750747369195,0.11184264,105920.0,105910.0,0.42939971]
[1750747369371,0.11184264,105920.0,105910.0,0.41995827]
[1750747369608,0.11184264,105920.0,105910.0,0.58577912]
[1750747369826,0.11184264,105920.0,105910.0,0.57123827]
[1750747370038,0.3933309,105920.0,105910.0,0.40251674]
[1750747370251,0.3933309,105920.0,105910.0,0.20423536]
[1750747370467,0.3933309,105920.0,105910.0,0.29295724]
[1750747370653,0.3933309,105920.0,105910.0,0.49123862]
[1750747370908,0.3933309,105920.0,105910.0,0.48823862]
[1750747371122,0.3933309,105920.0,105910.0,0.46931494]
[1750747371331,0.3923309,105920.0,105910.0,0.48819844]
[1750747371559,0.09674264,105920.0,105910.0,0.79701102]
[1750747371778,0.09774264,105920.0,105910.0,0.65531187]
[1750747372213,0.09774264,105920.0,105910.0,0.37482361]
[1750747372427,0.09774264,105920.0,105910.0,0.53110361]
[1750747372638,0.09774264,105920.0,105910.0,0.37482361]
[1750747372878,0.08224264,105920.0,105910.0,1.16789187]
[1750747373086,0.08224264,105920.0,105910.0,1.18399187]
[1750747374154,0.08224264,105920.0,105910.0,1.02771187]
[1750747374365,0.08124264,105920.0,105910.0,1.22515187]
[1750747374584,0.08124264,105920.0,105910.0,1.22815187]
[1750747374793,0.08124264,105920.0,105910.0,1.23115187]
[1750747375011,0.08124264,105920.0,105910.0,1.22515187]
[1750747375490,0.08124264,105920.0,105910.0,1.23415187]
[1750747375715,0.08124264,105920.0,105910.0,1.29801187]
[1750747375928,0.08124264,105920.0,105910.0,1.10061187]
[1750747376099,0.08124264,105920.0,105910.0,1.29801187]
[1750747377281,0.08124264,105920.0,105910.0,1.10061187]
[1750747377471,0.08124264,105920.0,105910.0,1.29797187]
[1750747377909,0.08124264,105920.0,105910.0,1.29793187]
[1750747378121,0.08124264,105920.0,105910.0,1.01744361]
[1750747378333,0.08124264,105920.0,105910.0,1.29793187]
[1750747378755,0.08124264,105920.0,105910.0,1.31433187]
[1750747379177,0.08124264,105920.0,105910.0,1.25681187]
[1750747379410,0.08124264,105920.0,105910.0,1.29789187]
[1750747379644,0.08124264,105920.0,105910.0,1.32622587]
[1750747379861,0.08124264,105920.0,105910.0,1.30992587]
[1750747380071,0.08124264,105920.0,105910.0,1.11268587]
[1750747380288,0.08124264,105920.0,105910.0,1.30992587]
[1750747380502,0.08124264,105920.0,105910.0,1.13162587]
[1750747380718,0.08124264,105920.0,105910.0,1.32882587]
[1750747381550,0.08124264,105920.0,105910.0,1.32878587]
[1750747381976,0.08124264,105920.0,105910.0,1.04829761]
[1750747382170,0.08124264,105920.0,105910.0,1.32878587]
[1750747382850,0.08124264,105920.0,105910.0,1.62498587]
[1750747383079,0.08124264,105920.0,105910.0,1.62494587]
[1750747383918,0.08124264,105920.0,105910.0,1.42782587]
[1750747384037,0.08124264,105920.0,105910.0,1.62090587]
[1750747384445,0.08124264,105920.0,105910.0,1.61890587]
[1750747384850,0.08124264,105920.0,105910.0,1.62190587]
[1750747385751,0.08124264,105920.0,105910.0,1.42482587]
[1750747385938,0.08124264,105920.0,105910.0,1.62190587]
[1750747386140,0.08124264,105920.0,105910.0,1.62182587]
[1750747386345,0.08124264,105920.0,105910.0,1.63792587]
[1750747388657,0.09634264,105920.0,105910.0,1.32562587]
[1750747389081,0.09634264,105920.0,105910.0,1.12862587]
[1750747389263,0.09634264,105920.0,105910.0,1.04505761]
[1750747389471,0.09634264,105920.0,105910.0,1.32554587]
[1750747390012,0.09634264,105920.0,105910.0,1.12862587]
[1750747390211,0.09634264,105920.0,105910.0,1.32554587]
[1750747391043,0.09634264,105920.0,105910.0,1.04505761]
[1750747391285,0.09634264,105920.0,105910.0,1.32550587]
[1750747392261,0.08124264,105920.0,105910.0,1.32550587]
[1750747392662,0.08124264,105920.0,105910.0,1.12862587]
[1750747392892,0.08124264,105920.0,105910.0,1.32550587]
[1750747393849,0.08124264,105920.0,105910.0,1.12862587]
[1750747394101,0.08124264,105920.0,105910.0,1.32542587]
[1750747394301,0.09744264,105920.0,105910.0,1.32542587]
[1750747394458,0.09744264,105920.0,105910.0,1.12862587]
[1750747394664,0.09744264,105920.0,105910.0,1.32542587]
[1750747395506,0.09744264,105920.0,105910.0,1.12862587]
[1750747395708,0.09744264,105920.0,105910.0,1.32510587]
[1750747395874,0.08124264,105920.0,105910.0,1.32510587]
[1750747396080,0.08124264,105920.0,105910.0,1.34170587]
[1750747397633,0.08124264,105920.0,105910.0,1.14522587]
[1750747397830,0.08124264,105920.0,105910.0,1.34170587]
[1750747398655,0.08124264,105920.0,105910.0,1.14522587]
[1750747398862,0.08124264,105920.0,105910.0,1.34170587]
[1750747399269,0.08124264,105920.0,105910.0,1.14522587]
[1750747399514,0.08124264,105920.0,105910.0,1.34166587]
[1750747403937,0.09664264,105920.0,105910.0,1.34166587]
[1750747404575,0.09664264,105920.0,105910.0,1.14522587]
[1750747404772,0.09664264,105920.0,105910.0,0.84813761]
[1750747405077,0.09664264,105920.0,105910.0,1.04445761]
[1750747405250,0.09664264,105920.0,105910.0,1.32494587]
[1750747405622,0.11284264,105920.0,105910.0,0.49359676]
[1750747405815,0.11284264,105920.0,105910.0,0.64915676]
[1750747406405,0.11284264,105920.0,105910.0,0.64615676]
[1750747406660,0.11284264,105920.0,105910.0,0.66069761]
[1750747406920,0.11284264,105920.0,105910.0,0.66169761]
[1750747407512,0.11284264,105920.0,105910.0,0.65769761]
[1750747407656,0.11284264,105920.0,105910.0,0.65969761]
[1750747408262,0.11284264,105920.0,105910.0,0.65961761]
[1750747409587,0.11284264,105920.0,105910.0,0.50413761]
[1750747409803,0.11284264,105920.0,105910.0,0.65957761]
[1750747411076,0.11284264,105920.0,105910.0,0.65953761]
[1750747411287,0.11284264,105920.0,105910.0,0.50413761]
[1750747411505,0.11284264,105920.0,105910.0,0.65953761]
[1750747412138,0.11284264,105920.0,105910.0,0.50413761]
[1750747412494,0.11284264,105920.0,105910.0,0.65949761]
[1750747412710,0.09664264,105920.0,105910.0,0.65949761]
[1750747412893,0.09664264,105920.0,105910.0,0.50413761]
[1750747413113,0.09664264,105920.0,105910.0,0.65949761]
[1750747413897,0.09664264,105920.0,105910.0,0.65945761]
[1750747415712,0.09664264,105920.0,105910.0,1.27994587]
[1750747415904,0.09664264,105920.0,105910.0,0.99945761]
[1750747416105,0.09664264,105920.0,105910.0,1.27990587]
[1750747416644,0.09664264,105920.0,105910.0,0.99941761]
[1750747417066,0.08124264,105920.0,105910.0,1.29530587]
[1750747417924,0.08124264,105920.0,105910.0,1.36988799]
[1750747418347,0.08124264,105920.0,105910.0,1.21460799]
[1750747418563,0.09764264,105920.0,105910.0,1.36992799]
[1750747418764,0.08124264,105920.0,105910.0,1.21460799]
[1750747418975,0.08124264,105920.0,105910.0,1.36988799]
[1750747419839,0.08124264,105920.0,105910.0,1.21460799]
[1750747420039,0.08124264,105920.0,105910.0,1.36988799]
[1750747420268,0.09674264,105920.0,105910.0,1.36988799]
[1750747422827,0.09674264,105920.0,105910.0,1.35448799]
[1750747424374,0.09674264,105920.0,105910.0,1.37038799]
[1750747426656,0.08124264,105920.0,105910.0,1.37038799]
[1750747426891,0.09764264,105920.0,105910.0,1.37038799]
[1750747427949,0.08124264,105920.0,105910.0,1.37038799]
[1750747428510,0.08124264,105920.0,105910.0,1.08989973]
[1750747428719,0.08124264,105920.0,105910.0,1.37038799]
[1750747429661,0.09684264,105920.0,105910.0,1.19920799]
[1750747429873,0.09684264,105920.0,105910.0,1.35472799]
[1750747430067,0.09684264,105920.0,105910.0,1.01472799]
[1750747430984,0.09684264,105920.0,105910.0,1.03122799]
[1750747437277,0.09684264,105920.0,105910.0,0.75073973]
[1750747437479,0.09684264,105920.0,105910.0,1.03122799]
[1750747440154,0.09684264,105920.0,105910.0,1.44688884]
[1750747440376,0.09744264,105920.0,105910.0,1.35508799]
[1750747440694,0.09744264,105920.0,105910.0,1.07459973]
[1750747440854,0.09744264,105920.0,105910.0,1.35508799]
[1750747442505,0.09744264,105920.0,105910.0,1.08999973]
[1750747442716,0.09744264,105920.0,105910.0,1.37048799]
[1750747442876,0.08124264,105920.0,105910.0,1.10639973]
[1750747443079,0.08124264,105920.0,105910.0,1.12504526]
[1750747443389,0.08124264,105920.0,105910.0,1.40553352]
[1750747443941,0.08124264,105920.0,105910.0,1.12504526]
[1750747444064,0.08124264,105920.0,105910.0,1.40553352]
[1750747444799,0.08124264,105920.0,105910.0,1.12504526]
[1750747444993,0.08124264,105920.0,105910.0,1.40553352]
[1750747445394,0.08124264,105920.0,105910.0,1.38659352]
[1750747448318,0.11344264,105920.0,105910.0,0.86611847]
[1750747448556,0.11344264,105920.0,105910.0,0.99684021]
[1750747448764,0.11344264,105920.0,105910.0,1.01572363]
[1750747448970,0.11344264,105920.0,105910.0,1.02516507]
[1750747449196,0.11344264,105920.0,105910.0,1.03026448]
[1750747449400,0.11344264,105920.0,105910.0,1.01572363]
[1750747449603,0.11344264,105920.0,105910.0,1.03970592]
[1750747450012,0.11344264,105920.0,105910.0,1.03026448]
[1750747450425,0.11344264,105920.0,105910.0,1.03970592]
[1750747450623,0.11344264,105920.0,105910.0,1.02086286]
[1750747450829,0.11344264,105920.0,105910.0,0.86242286]
[1750747451037,0.11344264,105920.0,105910.0,0.59125091]
[1750747451265,0.11344264,105920.0,105910.0,0.56287691]
[1750747451470,0.11344264,105920.0,105910.0,0.57231879]
[1750747451671,0.11344264,105920.0,105910.0,0.56283691]
[1750747451876,0.11344264,105920.0,105910.0,0.57127879]
[1750747452085,0.11344264,105920.0,105910.0,0.41195879]
[1750747452296,0.11444264,105920.0,105910.0,0.41195879]
[1750747452513,0.11444264,105920.0,105910.0,0.55135494]
[1750747452975,0.11444264,105920.0,105910.0,0.57023879]
[1750747453431,0.11444264,105920.0,105910.0,0.56079691]
[1750747453865,0.11444264,105920.0,105910.0,0.26883958]
[1750747454071,0.11444264,105920.0,105910.0,0.42711958]
[1750747454429,0.11444264,105920.0,105910.0,0.23828]
[1750747454633,0.11449264,105920.0,105910.0,0.23828]
[1750747455545,0.11449264,105920.0,105910.0,0.15828]
[1750747456421,0.3949809,105920.0,105910.0,0.15828]
[1750747456826,0.3949809,105920.0,105910.0,0.21451441]
[1750747457031,0.3949809,105920.0,105910.0,0.05623441]
[1750747457695,0.11449264,105920.0,105910.0,0.05623441]
[1750747457921,0.3949809,105920.0,105910.0,0.24507399]
[1750747458123,0.11449264,105920.0,105910.0,0.24507399]
[1750747459290,0.09809264,105920.0,105900.0,0.27850278]
[1750747459493,0.0161,105910.0,105900.0,0.88160697]
[1750747459721,0.0161,105910.0,105900.0,0.89104921]
[1750747460794,0.0161,105910.0,105900.0,0.89204921]
[1750747460991,0.0317,105910.0,105900.0,0.72444697]
[1750747461216,0.0317,105910.0,105900.0,0.89200921]
[1750747461491,0.0161,105910.0,105900.0,0.89200921]
[1750747461730,0.0161,105910.0,105900.0,0.88256751]
[1750747461905,0.0312,105910.0,105900.0,0.5425676]
[1750747462110,0.0312,105910.0,105900.0,0.53304509]
[1750747462310,0.0312,105910.0,105900.0,0.5434876]
[1750747462535,0.0312,105910.0,105900.0,0.56237235]
[1750747462756,0.0312,105910.0,105900.0,0.5434876]
[1750747462965,0.0312,105910.0,105900.0,0.52456231]
[1750747463166,0.0312,105910.0,105900.0,0.54344733]
[1750747463554,0.0312,105910.0,105900.0,0.54344742]
[1750747463820,0.0312,105910.0,105900.0,0.5245624]
[1750747463991,0.0312,105910.0,105900.0,0.15373627]
[1750747464142,0.31168826,105910.0,105900.0,0.002]
[1750747464799,0.31168826,105910.0,105900.0,0.001]
[1750747465011,0.31268826,105910.0,105900.0,0.001]
[1750747465207,0.016,105900.0,105890.0,0.42705408]
[1750747465444,0.0317,105900.0,105890.0,0.53199943]
[1750747465622,0.0317,105900.0,105890.0,0.56035283]
[1750747465829,0.016,105900.0,105890.0,0.56979614]
[1750747466053,0.016,105900.0,105890.0,0.40239283]
[1750747466213,0.016,105900.0,105890.0,0.56975614]
[1750747466394,0.016,105900.0,105890.0,0.40339283]
[1750747466604,0.016,105900.0,105890.0,0.56127283]
[1750747466798,0.016,105900.0,105890.0,0.59068971]
[1750747466996,0.016,105900.0,105890.0,0.56127283]
[1750747467233,0.016,105900.0,105890.0,0.58015936]
[1750747467450,0.016,105900.0,105890.0,0.41283614]
[1750747467662,0.016,105900.0,105890.0,0.57071614]
[1750747467864,0.016,105900.0,105890.0,0.41283614]
[1750747468006,0.016,105900.0,105890.0,0.57167614]
[1750747468208,0.016,105900.0,105890.0,0.17264627]
[1750747468408,0.31288826,105900.0,105890.0,0.002]
[1750747468840,0.0324,105900.0,105890.0,0.002]
[1750747469019,0.31288826,105900.0,105890.0,0.002]
[1750747469335,0.0151,105890.0,105880.0,0.24232809]
[1750747469497,0.0151,105890.0,105880.0,0.49447385]
[1750747469904,0.0151,105890.0,105880.0,0.50391814]
[1750747470145,0.0151,105890.0,105880.0,0.49447385]
[1750747470346,0.0151,105890.0,105880.0,0.5039176]
[1750747470591,0.0151,105890.0,105880.0,0.49447304]
[1750747470966,0.0151,105890.0,105880.0,0.48502893]
[1750747471204,0.0151,105890.0,105880.0,0.47558464]
[1750747471417,0.0151,105890.0,105880.0,0.49447313]
[1750747472172,0.0161,105890.0,105880.0,0.52286413]
[1750747472374,0.0161,105890.0,105880.0,0.53230824]
[1750747472705,0.0161,105890.0,105880.0,0.52286413]
[1750747473049,0.0165,105880.0,105870.0,0.05623441]
[1750747473255,0.0327,105880.0,105870.0,0.25314186]
[1750747473435,0.0165,105880.0,105870.0,0.29385832]
[1750747473636,0.0165,105880.0,105870.0,0.31274913]
[1750747473819,0.0165,105880.0,105870.0,0.30330377]
[1750747474022,0.0165,105880.0,105870.0,0.30330368]
[1750747474201,0.0165,105880.0,105870.0,0.30344198]
[1750747474414,0.0165,105880.0,105870.0,0.45255671]
[1750747474604,0.0165,105880.0,105870.0,0.46200216]
[1750747474804,0.0165,105880.0,105870.0,0.47144752]
[1750747475005,0.0165,105880.0,105870.0,0.26456579]
[1750747476354,0.0165,105880.0,105870.0,0.26356579]
[1750747476608,0.0165,105880.0,105870.0,0.2814566]
[1750747476829,0.0175,105880.0,105870.0,0.2814566]
[1750747477049,0.0175,105880.0,105870.0,0.47981279]
[1750747477376,0.0175,105880.0,105870.0,0.47036752]
[1750747477577,0.0175,105880.0,105870.0,0.47981279]
[1750747477803,0.0175,105880.0,105870.0,0.46092216]
[1750747478017,0.0175,105880.0,105870.0,0.47036752]
[1750747478269,0.001,105880.0,105870.0,0.80058673]
[1750747478585,0.001,105880.0,105870.0,0.52009847]
[1750747478730,0.001,105880.0,105870.0,0.52009865]
[1750747478931,0.001,105880.0,105870.0,0.52009812]
[1750747479140,0.001,105880.0,105870.0,0.36261812]
[1750747479334,0.001,105880.0,105870.0,0.50108766]
[1750747479796,0.001,105880.0,105870.0,0.29328664]
[1750747480000,0.0163,105880.0,105870.0,0.302732]
[1750747480207,0.0163,105880.0,105870.0,0.31217727]
[1750747480421,0.0163,105880.0,105870.0,0.50108819]
[1750747480814,0.01635,105880.0,105870.0,0.50108819]
[1750747481043,0.01635,105880.0,105870.0,0.51053337]
[1750747481244,0.01635,105880.0,105870.0,0.50108819]
[1750747481458,0.01635,105880.0,105870.0,0.49164292]
[1750747481634,0.01635,105880.0,105870.0,0.50108819]
[1750747481865,0.01635,105880.0,105870.0,0.47534292]
[1750747481974,0.01635,105880.0,105870.0,0.47534301]
[1750747482174,0.01635,105880.0,105870.0,0.2675411]
[1750747483315,0.01635,105880.0,105870.0,0.1101811]
[1750747484291,0.01635,105880.0,105870.0,0.09564025]
[1750747484948,0.03215,105880.0,105870.0,0.09564025]
[1750747485577,0.01635,105880.0,105870.0,0.09564025]
[1750747485923,0.01635,105880.0,105870.0,0.10508579]
[1750747486525,0.01635,105880.0,105870.0,0.09564025]
[1750747487276,0.01635,105880.0,105870.0,0.10508579]
[1750747487684,0.01635,105880.0,105870.0,0.11453124]
[1750747487886,0.01635,105880.0,105870.0,0.1239766]
[1750747488086,0.01635,105880.0,105870.0,0.32233279]
[1750747488467,0.01635,105880.0,105870.0,0.33177797]
[1750747489322,0.01635,105880.0,105870.0,0.32233279]
[1750747490772,0.01635,105880.0,105870.0,0.31288725]
[1750747491180,0.01635,105880.0,105870.0,0.32233243]
[1750747491772,0.01635,105880.0,105870.0,0.33803243]
[1750747492019,0.01635,105880.0,105870.0,0.34747753]
[1750747492200,0.01635,105880.0,105870.0,0.33803243]
[1750747492429,0.01635,105880.0,105870.0,0.34747744]
[1750747492632,0.01635,105880.0,105870.0,0.33803199]
[1750747493040,0.01635,105880.0,105870.0,0.34747691]
[1750747493285,0.00105,105880.0,105870.0,0.62796517]
[1750747493493,0.00105,105880.0,105870.0,0.34747691]
[1750747493670,0.00105,105880.0,105870.0,0.40371132]
[1750747494106,0.00105,105880.0,105870.0,0.34747691]
[1750747494670,0.00105,105880.0,105870.0,0.40371132]
[1750747495067,0.00105,105880.0,105870.0,0.56059132]
[1750747495671,0.00105,105880.0,105870.0,0.5511464]
[1750747495895,0.00105,105880.0,105870.0,0.55114649]
[1750747496232,0.00105,105880.0,105870.0,0.56059141]
[1750747496637,0.00105,105880.0,105870.0,0.55114649]
[1750747496752,0.00105,105880.0,105870.0,0.56059106]
[1750747497464,0.00105,105880.0,105870.0,0.55114614]
[1750747498083,0.00105,105880.0,105870.0,0.56059106]
[1750747499209,0.03355,105880.0,105870.0,0.0563728]
[1750747499409,0.31403826,105880.0,105870.0,0.00013839]
[1750747499693,0.01745,105880.0,105870.0,0.00013839]
[1750747500377,0.01745,105880.0,105870.0,0.01593839]
[1750747500920,0.01645,105880.0,105870.0,0.01593839]
[1750747501124,0.02045,105880.0,105870.0,0.00013839]
[1750747501326,0.31703826,105880.0,105870.0,0.00013839]
[1750747501562,0.3264822,105880.0,105870.0,0.00013839]
[1750747501768,0.32748211,105880.0,105870.0,0.00013839]
[1750747501982,0.92069845,105880.0,105870.0,0.00013839]
[1750747502195,1.32371601,105880.0,105870.0,0.00013839]
[1750747502406,1.36409471,105880.0,105870.0,0.00013839]
[1750747502616,1.44250071,105880.0,105870.0,0.00013839]
[1750747502825,1.50704156,105880.0,105870.0,0.00013839]
[1750747503036,0.84887816,105870.0,105860.0,0.0002]
[1750747503260,1.68846625,105870.0,105830.0,0.0002]
[1750747503470,1.68846625,105870.0,105820.0,0.0002]
[1750747503471,0.03954849,105830.0,105820.0,0.0002]
[1750747503677,0.03954849,105830.0,105820.0,0.00066138]
[1750747503678,1.45875594,105830.0,105820.0,0.00066138]
[1750747503893,1.2780406,105830.0,105820.0,0.00947993]
[1750747504134,1.45757471,105830.0,105820.0,0.00947993]
[1750747504337,1.36785142,105830.0,105820.0,0.00947993]
[1750747504557,1.38674831,105830.0,105820.0,0.00947993]
[1750747504766,1.3781725,105830.0,105820.0,0.00947993]
[1750747504976,0.78456441,105830.0,105820.0,0.00948372]
[1750747505189,0.99785272,105830.0,105820.0,0.00948372]
[1750747505418,0.99785272,105830.0,105820.0,0.00066138]
[1750747505419,0.015789,105830.0,105820.0,0.00066138]
[1750747505626,0.29248826,105830.0,105820.0,0.00066138]
[1750747506693,0.005,105830.0,105820.0,0.33750304]
[1750747506903,0.3561,105860.0,105820.0,0.34385384]
[1750747507110,0.001,105830.0,105820.0,0.34476273]
[1750747507316,0.001,105830.0,105820.0,0.35421211]
[1750747507317,0.002,105830.0,105820.0,0.35421211]
[1750747507516,0.001,105830.0,105820.0,0.36275296]
[1750747507730,0.001,105830.0,105820.0,0.37835296]
[1750747507932,0.001,105830.0,105820.0,0.66684122]
[1750747508394,0.001,105830.0,105820.0,0.38635296]
[1750747508798,0.001,105830.0,105820.0,0.41475896]
[1750747509237,0.001,105830.0,105820.0,0.57203896]
[1750747509445,0.001,105830.0,105820.0,0.41475896]
[1750747509658,0.001,105830.0,105820.0,0.57203896]
[1750747509864,0.001,105830.0,105820.0,0.41475896]
[1750747510070,0.001,105830.0,105820.0,0.57199896]
[1750747513521,0.001,105830.0,105820.0,0.41475896]
[1750747513748,0.001,105830.0,105820.0,0.57195896]
[1750747516955,0.001,105830.0,105820.0,0.58241067]
[1750747517539,0.001,105830.0,105820.0,0.55635896]
[1750747517721,0.001,105830.0,105820.0,0.53741984]
[1750747517923,0.001,105830.0,105820.0,0.54686931]
[1750747518154,0.001,105830.0,105820.0,0.53741984]
[1750747518358,0.001,105830.0,105820.0,0.5468694]
[1750747518763,0.001,105830.0,105820.0,0.55631887]
[1750747518972,0.001,105830.0,105820.0,0.54686887]
[1750747519182,0.001,105830.0,105820.0,0.52796984]
[1750747519421,0.001,105830.0,105820.0,0.3802594]
[1750747519626,0.001,105830.0,105820.0,0.5373794]
[1750747519835,0.001,105830.0,105820.0,0.51848019]
[1750747520039,0.001,105830.0,105820.0,0.5373794]
[1750747520450,0.001,105830.0,105820.0,0.16578138]
[1750747520698,0.001,105830.0,105820.0,0.21656148]
[1750747520901,0.001,105830.0,105820.0,0.19766156]
[1750747521522,0.001,105830.0,105820.0,0.2165613]
[1750747521728,0.001,105830.0,105820.0,0.21656139]
[1750747521942,0.001,105830.0,105820.0,0.21656148]
[1750747522151,0.001,105830.0,105820.0,0.19766156]
[1750747522455,0.001,105830.0,105820.0,0.20711148]
[1750747522668,0.001,105830.0,105820.0,0.19766156]
[1750747523081,0.001,105830.0,105820.0,0.21656113]
[1750747523297,0.001,105830.0,105820.0,0.20711139]
[1750747523515,0.001,105830.0,105820.0,0.21656113]
[1750747524199,0.001,105830.0,105820.0,0.23546016]
[1750747524396,0.001,105830.0,105820.0,0.23546025]
[1750747524623,0.001,105830.0,105820.0,0.23546034]
[1750747525326,0.001,105830.0,105820.0,0.22601078]
[1750747525527,0.001,105830.0,105820.0,0.21656113]
[1750747525734,0.001,105830.0,105820.0,0.22601078]
[1750747526141,0.001,105830.0,105820.0,0.23546034]
[1750747526913,0.001,105830.0,105820.0,0.30601078]
[1750747527113,0.001,105830.0,105820.0,0.31546034]
[1750747528090,0.001,105830.0,105820.0,0.30601078]
[1750747528293,0.001,105830.0,105820.0,0.31546034]
[1750747528506,0.05682,105840.0,105820.0,0.32490981]
[1750747528712,0.05682,105840.0,105820.0,0.34386934]
[1750747528925,0.05682,105840.0,105820.0,0.33441978]
[1750747529130,0.05682,105840.0,105820.0,0.32497013]
[1750747529780,0.05682,105840.0,105820.0,0.33441978]
[1750747529990,0.05682,105840.0,105830.0,0.18898233]
[1750747530211,0.3376289,105840.0,105830.0,0.18898233]
[1750747530414,0.05682,105840.0,105830.0,0.18898233]
[1750747531037,0.05782,105840.0,105830.0,0.18898233]
[1750747531590,0.001,105840.0,105830.0,0.61383935]
[1750747531791,0.001,105840.0,105830.0,0.6442802]
[1750747532227,0.001,105840.0,105830.0,0.9842802]
[1750747533489,0.001,105840.0,105830.0,0.9802802]
[1750747533672,0.001,105840.0,105830.0,0.9842802]
[1750747533906,0.05822,105870.0,105860.0,0.18892877]
[1750747534315,0.0165,105870.0,105860.0,0.18892877]
[1750747534524,0.05822,105870.0,105860.0,0.18892877]
[1750747534731,0.0165,105870.0,105860.0,0.18892877]
[1750747534910,0.05822,105870.0,105860.0,0.18892877]
[1750747535152,0.05822,105870.0,105860.0,0.00013859]
[1750747535356,0.06222,105870.0,105850.0,0.36432471]
[1750747535563,0.06235841,105870.0,105860.0,0.18892877]
[1750747536188,0.06635841,105870.0,105860.0,0.18892877]
[1750747536615,0.00413841,105870.0,105860.0,0.20782154]
[1750747536825,0.00013841,105870.0,105860.0,0.20782154]
[1750747537038,0.00613841,105870.0,105860.0,0.2172678]
[1750747537248,0.00213841,105870.0,105860.0,0.18892877]
[1750747537947,0.00413841,105870.0,105860.0,0.18892877]
[1750747538985,0.00413841,105870.0,105850.0,0.75008172]
[1750747539122,0.00413841,105870.0,105850.0,0.76578172]
[1750747539570,0.00413841,105870.0,105850.0,0.75633493]